Cogmind - Beta 15 @@@ ROGUE MODE // 2025.10.07 @ 19:37:45 Player: DietSnapple Result: Destroyed by as-78552 with Assembled Rifle Performance ------------- Evolutions (0) 0 Regions Visited (2) 400 Robots Destroyed (21) 105 Value Destroyed (509) 509 Prototype IDs (2) 40 Alien Tech Used (0) 0 Bonus (0) 0 TOTAL SCORE: 1054 Bonus ------- None Cogmind --------- Core Integrity 0/250 Matter 295/300 Energy 100/100 System Corruption 3% Temperature Cool (77) Movement Core (50) Location -10/Mines Parts ------- > --- POWER (1) -------- (None) > --- PROPULSION (2) --- (None) > --- UTILITY (2) ------ Utility Shielding (fused) Hacking Suite > --- WEAPON (2) ------- (None) > --- INVENTORY (5) ---- Small Storage Unit ECM Suite Heavy EM Pulse Gun Light Assault Rifle Peak State ------------ > --- POWER ------------ Light Nuclear Core > --- PROPULSION ------- Wheel Compact Wheel > --- UTILITY ---------- Utility Shielding Hacking Suite > --- WEAPON ----------- Heavy EM Pulse Gun Heavy EM Pulse Gun > --- INVENTORY -------- Small Storage Unit ECM Suite Assault Rifle Light Assault Rifle Grenade Launcher [Rating: 13] Favorites ----------- Power Light Nuclear Core Engine Ion Engine Power Core Light Nuclear Core Propulsion Light Treads Treads Light Treads Wheel Compact Wheel Utility Small Storage Unit Storage Small Storage Unit Hackware Hacking Suite Protection Utility Shielding Weapon Assault Rifle Energy Gun Heavy EM Pulse Gun Ballistic Gun Assault Rifle Launcher Grenade Launcher Build | -11 -10 -10 ------- Run | Yrd Mat Min Slots Evolved . | . . . Power . | . . . Propulsion . | . . . Utility . | . . . Weapon . | . . . Parts Attached 15 | 6 8 1 Power 3 | 1 2 . Engine 2 | 1 1 . Core 1 | . 1 . Reactor . | . . . Propulsion 4 | 2 2 . Treads 2 | 2 . . Leg . | . . . Wheel 2 | . 2 . Hover . | . . . Flight . | . . . Utility 3 | 1 2 . Device . | . . . Storage 1 | 1 . . Processor . | . . . Hackware 1 | . 1 . Protection 1 | . 1 . Artifact . | . . . Weapon 5 | 2 2 1 Energy Gun 2 | . 2 . Energy Cannon . | . . . Ballistic Gun 2 | 2 . . Ballistic Cannon . | . . . Launcher 1 | . . 1 Special Weapon . | . . . Impact Weapon . | . . . Slashing Weapon . | . . . Piercing Weapon . | . . . Special Melee Weapon . | . . . Unidentified Prototypes . | . . . Parts Lost 6 | . . 6 Power 1 | . . 1 Propulsion 2 | . . 2 Utility . | . . . Weapon 3 | . . 3 Highest Loss Streak 6 | . . 6 To Critical Strikes . | . . . Average Backups 5 | 1 5 4 Power . | . 1 . Propulsion 1 | 1 1 . Utility . | . . 2 Weapon 2 | . 2 2 Tool/Special . | . . . Unused Backups 4 | . 1 3 Power 1 | . 1 . Propulsion . | . . . Utility 1 | . . 1 Weapon 2 | . . 2 Tool/Special . | . . . Average Slot Usage (%) 91 | . 91 85 Engine 5 | . 5 . Core 8 | . 8 11 Treads 17 | . 18 . Wheel 10 | . 9 23 Storage 8 | . 9 . Hackware 7 | . 6 14 Protection 5 | . 4 14 Energy Gun 9 | . 9 21 Ballistic Gun 17 | . 18 . Peak Build Rating 13 | 6 13 13 Average Rating 9 | 4 9 11 On Entrance 6 | . 6 13 Naked Turns . | . . . Heaviest Build 14 | 14 14 12 Greatest Support 40 | 40 40 26 Greatest Overweight (x) 3 | 1 3 . Average Overweight (x) . | . . . Largest Inventory Capacity 8 | 8 8 5 Average Capacity 6 | 6 6 5 Most Carried 8 | 3 8 5 Average Carried 5 | 1 5 4 Final Capacity 8 | 8 5 5 Final Carried 5 | 3 5 4 Class Distribution -------------------- 100% | Mutant Dominant Class ---------------- Mutant | -10/Materials Mutant | -10/Mines Resources | -11 -10 -10 ----------- Run | Yrd Mat Min Matter Collected 636 | 174 462 . Remotely . | . . . Salvage Created 714 | . 646 68 Parts 45 | . 38 7 Haulers Intercepted 1 | . 1 . Recyclers Shooed . | . . . Parts Field Recycled . | . . . Retrieved Matter . | . . . Parts Self-Destructed . | . . . Prevented . | . . . Kills | -11 -10 -10 ------- Run | Yrd Mat Min Combat Hostiles Destroyed 18 | . 14 4 Guns 17 | . 14 3 AOE 1 | . . 1 Classes Destroyed 6 | . 5 1 Builder 1 | . 1 . Hauler 1 | . 1 . Operator 2 | . 2 . Swarmer 6 | . 3 3 Grunt 11 | . 11 . Assembled 1 | . . 1 Best Kill Streak 3 | . 3 3 Combat Bots Only 3 | . 3 3 Max Kills in Single Turn 1 | . 1 1 Gunslinging . | . . . Exploded 1 | . . 1 Melee . | . . . Uniques/NPCs Destroyed . | . . . Combat | -11 -10 -10 -------- Run | Yrd Mat Min Hostile Shots Fired 93 | . 61 32 Missed 30 | . 24 6 Hits 63 | . 37 26 Melee 4 | . . 4 Projectile 59 | . 37 22 Damage Taken 837 | . 421 416 Core 258 | . 101 157 Absorbed by Shields . | . . . Core Remaining (%) 100 | 100 . . Volleys Fired 61 | . 51 10 Largest 2 | . 2 2 Hottest 90 | . 90 90 Shots Fired 117 | . 103 14 Gun 115 | . 103 12 Cannon . | . . . Launcher 2 | . . 2 Special . | . . . Kinetic 88 | . 88 . Thermal . | . . . Explosive 2 | . . 2 Electromagnetic 27 | . 15 12 Robot Hit Streak 8 | . 8 5 Robot Miss Streak 4 | . 4 1 Penetration Max . | . . . Secondary Targets . | . . . Shots Hit Robots 72 | . 63 9 Core Hits 38 | . 28 10 Critical Kills . | . . . Critical Parts Destroyed . | . . . Critical Strikes . | . . . Melee Attacks . | . . . Impact . | . . . Slashing . | . . . Piercing . | . . . Sneak Attacks . | . . . Combat Hostiles . | . . . Follow-up Attacks . | . . . Damage Inflicted 1113 | . 829 284 Guns 928 | . 821 107 Cannons . | . . . Explosions 177 | . . 177 Melee . | . . . Ramming 8 | . 8 . Kinetic 692 | . 692 . Thermal . | . . . Explosive 177 | . . 177 Electromagnetic 236 | . 129 107 Impact . | . . . Slashing . | . . . Piercing . | . . . Highest Corruption 3 | . 3 3 Average Corruption 2 | . 2 3 Corruption Purged . | . . . Corruption Blocked . | . . . Effects 9 | . 9 . Message Errors 1 | . 1 . Matter Fused 4 | . 4 . Heat Flow Errors 1 | . 1 . Energy Discharges 1 | . 1 . Parts Fused 1 | . 1 . Misfires 1 | . 1 . Overload Shots . | . . . Overflow Damage 7 | . . 7 Projectiles . | . . . Explosions 7 | . . 7 Melee . | . . . Knockbacks . | . . . Impact . | . . . Kinetic . | . . . Secondary . | . . . Self-Inflicted Damage 57 | . . 57 Shots 2 | . . 2 Rammed 1 | . 1 . Targets Rammed 1 | . 1 . Kicked . | . . . Crushed . | . . . Highest Temperature 144 | . 144 108 Average Temperature 52 | . 43 68 Received Heat Transfer 284 | . 204 80 Siege Activations . | . . . Martial Activations . | . . . Shielding Activations . | . . . Robots Disrupted . | . . . Combat Hostiles . | . . . Robots Corrupted . | . . . Combat Hostiles . | . . . Parts Fried . | . . . Impact Corruptions . | . . . Robots Melted . | . . . Combat Hostiles . | . . . Parts Melted . | . . . Heat Transferred . | . . . Parts Sabotaged . | . . . Parts Stolen . | . . . Parts Stripped . | . . . Power Chain Reactions . | . . . Alert | -11 -10 -10 ------- Run | Yrd Mat Min Maximum Alert Level . | . . . Low Security (%) 100 | 100 100 100 Level 1 . | . . . Level 2 . | . . . Level 3 . | . . . Level 4 . | . . . Level 5 . | . . . High Security . | . . . Max Security . | . . . Peak Influence 104 | . 104 101 Initial 31 | . . 31 Average 35 | . 37 83 Influence Increases 521 | . 440 81 Destroy 0b10 Robot/C 340 | . 280 60 Destroy 0b10 Robot/NC 20 | . 20 . Destroy Leader 72 | . 62 10 Successful Hack 18 | . 18 . Disable Machine 15 | . 15 . Destroy Structure 11 | . . 11 Lose Combat Pursuer 45 | . 45 . Influence Decreases 489 | . 360 129 Entered New Map 49 | . . 49 Time Decay 380 | . 360 20 Lost Part 60 | . . 60 Squads Dispatched 4 | . 4 . Investigation 2 | . 2 . Extermination . | . . . Reinforcement 2 | . 2 . Assault . | . . . Garrison . | . . . Intercept . | . . . Searches Triggered . | . . . Construction Impeded . | . . . Haulers Reinforced . | . . . Active Scanning Responses . | . . . Cargo Convoy Interrupts . | . . . Stealth | -11 -10 -10 --------- Run | Yrd Mat Min Distress Signals 1 | . 1 . Communications Jammed . | . . . Distress Signals . | . . . Times Spotted 42 | . 27 15 Peak Tracking Total 13 | . 4 13 Tactical Retreats 3 | . 2 1 Traps | -11 -10 -10 ------- Run | Yrd Mat Min Traps Triggered 1 | . 1 . Indirectly . | . . . Trap Hack Attempts . | . . . Triggered . | . . . Disarmed . | . . . Reprogrammed . | . . . Reused . | . . . Traps Extracted . | . . . Installed . | . . . Triggered . | . . . Machines | -11 -10 -10 ---------- Run | Yrd Mat Min Machines Disabled 2 | . 2 . Max in Single Turn 1 | . 1 . Machines Repaired . | . . . Machines Dismantled . | . . . Machines Sabotaged . | . . . Overloaded Fab Kills . | . . . Hacking | -11 -10 -10 --------- Run | Yrd Mat Min Machines Accessed 5 | . 5 . Terminals 5 | . 5 . Fabricators . | . . . Repair Stations . | . . . Recycling Units . | . . . Scanalyzers . | . . . Garrison Access . | . . . Total Hacks 18 | . 18 . Successful 8 | . 8 . Failed 10 | . 10 . Catastrophic 1 | . 1 . Database Lockouts . | . . . Manual 16 | . 16 . Terminals 18 | . 18 . Fabricators . | . . . Repair Stations . | . . . Recycling Units . | . . . Scanalyzers . | . . . Garrison Access . | . . . Terminal Hacks 4 | . 4 . Robot Analysis 1 | . 1 . Prototype ID Bank 1 | . 1 . Terminal Index 1 | . 1 . Zone Layout 1 | . 1 . Fabricator Hacks . | . . . Repair Station Hacks . | . . . Recycling Unit Hacks . | . . . Scanalyzer . | . . . Garrison Access Hacks . | . . . Unauthorized Hacks 4 | . 4 . Terminals 4 | . 4 . Botnet 3 | . 3 . Operators 1 | . 1 . Fabricators . | . . . Repair Stations . | . . . Recycling Units . | . . . Scanalyzers . | . . . Garrison Access . | . . . Data Cores Recovered . | . . . Used . | . . . Hacking Detections 5 | . 5 . Full Trace Events 2 | . 2 . Feedback Events 1 | . 1 . Corruption 1 | . 1 . Feedback Blocked . | . . . Robot Schematics Acquired . | . . . Robots Built . | . . . Authchips . | . . . Time . | . . . Total Robot Build Rating . | . . . Part Schematics Acquired . | . . . Parts Built . | . . . Authchips . | . . . Time . | . . . Total Part Build Rating . | . . . Parts Repaired . | . . . Time . | . . . Parts Recycled . | . . . Recycled Matter . | . . . Retrieved Matter . | . . . Retrieved Components . | . . . Parts Scanalyzed . | . . . Part Schematics Acquired . | . . . Parts Damaged . | . . . Bothacking | -11 -10 -10 ------------ Run | Yrd Mat Min Used RIF Installer . | . . . Robots Hacked . | . . . Non-combat . | . . . Combat . | . . . Robot Hacks Applied . | . . . Relay Couplers Released . | . . . Fabnet Peak Effective % . | . . . Robots Rewired . | . . . Allies Hacked . | . . . Hacks Repelled . | . . . Allies | -11 -10 -10 -------- Run | Yrd Mat Min Total Allies . | . . . Largest Group . | . . . Highest-Rated Group . | . . . Highest-Rated Ally . | . . . Total Orders . | . . . Ally Attacks . | . . . Total Damage . | . . . Kills . | . . . Allies Corrupted . | . . . Allies Melted . | . . . Intel | -11 -10 -10 ------- Run | Yrd Mat Min Active Infowar (turns) . | . . . Robot Analysis Total 1 | . 1 . Derelict Logs Recovered . | . . . Drone Launches . | . . . Drone Recoveries . | . . . Exploration | -11 -10 -10 ------------- Run | Yrd Mat Min Turns Passed 1650 | 134 1472 44 Spaces Moved 1009 | 85 903 21 Core 101 | 15 85 1 Treads 548 | 70 478 . Legs . | . . . Wheels 360 | . 340 20 Hover . | . . . Flight . | . . . Fastest Speed 50 | 50 90 50 Average Speed 137 | 145 137 88 Slowest Speed 200 | 160 200 90 Overloaded Moves . | . . . Propulsion Burnouts . | . . . Robots Hopped . | . . . Potential Cave-ins . | . . . Cave-ins Triggered . | . . . Exploration Rate (%) 31 | 7 78 8 Regions Visited 2 Branch Regions 1 Pre-discovered Areas . | . . . Known Exits Taken . | . . . Unknown Exits Taken 2 | 1 1 . Scrap Searched . | . . . Spaces Dug . | . . . Terrain Destroyed 13 | . . 13 Melee . | . . . Projectile . | . . . AOE 13 | . . 13 Terrain Rammed . | . . . Walls Destroyed . | . . . Machines Disabled . | . . . Actions | -11 -10 -10 --------- Run | Yrd Mat Min Total 1159 | 93 1034 32 Wait 54 | . 54 . Move 1007 | 84 902 21 Hop . | . . . Pick Up 9 | 3 6 . Fast Attach 9 | 6 3 . Attach 4 | . 3 1 Detach 4 | . 4 . Swap 2 | . 2 . Drop 8 | . 8 . Fire 61 | . 51 10 Melee . | . . . Ram . | . . . Kick . | . . . Crush 1 | . 1 . Escape Stasis . | . . . Rewire . | . . . Trap . | . . . Miscellaneous . | . . . Route ------- -11/Scrapyard -10/Materials (discovered 4 exits: [*Mat x3] / [*Min]) -10/Mines History --------- Turn | Location | Event 10 | -11/Scrapyard | Discovered new exit (range 16) 135 | -11/Scrapyard | Entered Materials 302 | -10/Materials | Build established: Mutant 868 | -10/Materials | Discovered new exit (range 7) 972 | -10/Materials | Discovered new exit (range 10) 1186 | -10/Materials | Discovered new exit (range 6) 1386 | -10/Materials | Discovered new exit (range 15) 1607 | -10/Materials | Entered Mines 1608 | -10/Mines | Assembled infested the area 1613 | -10/Mines | Assisted by a Guerilla fighting off Assembled 1639 | -10/Mines | Core integrity fell below 50% 1650 | -10/Mines | Core integrity fell below 20% 1651 | -10/Mines | Destroyed by as-78552 with Assembled Rifle Last Messages --------------- 01610_ S-10 Pest destroyed. 01612_ Y8-786(h): "I'll hold them off! Go on ahead or try to find another way!" 01613_ A derelict emerges from the shadows: "You need to get out of here! I've been tracking a group of Assembled to figure out where they're coming from, and they're closing on this area, come on!" 01613_ S-10 Pest destroyed. 01628_ HV Slug penetrates as-91384. 01628_ as-91384 suffers critical hit (Destroy). 01628_ as-91384 knocked back. 01629_ Y8-786(h) system corrupted by crushing effect. 01629_ Y8-786(h) knocked back. 01630_ Y8-786(h) system terminally corrupted. 01636_ Hvy. EM Pulse Gun destroyed. 01646_ Wheel destroyed. 01646_ as-97329 destroyed. 01648_ Lgt. Nuclear Core destroyed. 01648_ Destroyed Lgt. Nuclear Core. 01648_ Grenade Launcher destroyed. 01648_ Destroyed Grenade Launcher. 01649_ Hvy. EM Pulse Gun destroyed. 01649_ Com. Wheel destroyed. Map ----- +----------------------------------------------------+ | ??????????????????????????????????????? | | ??????????????????????????????????????? | | ??????????????????????????????????????? | | ??????????????????????????????????????? | | ??????????????????????????????????????? | | ??????????????????????????????????????? | | ??????????????????????????????????????? | | ??????????????????????????????????????? | | ??????????????????????????????????????? | | ??????????????????????? ??????????????? | | ??????????????????????# ??????????????? | | ??????????????? ??????# ??????????????? | | ????????????? # ##????# ??????????????? | | ????????????? #???# ??????????????? | | ???????????? #??# ??????????????? | | ????????????? ### ??????????????? | | ??????????????# ##????????????? | | ???????????????# ##???????????? | | ???????????????? ##??????????? | | ????????????????? ##?????????? | | ??????????????????? #?????????? | | ????????????????????# %%= #?????????? | | ????????????????????# a #?????????? | | ????????????????????# a aa #?????????? | | ???????????????????##a #?????????? | | ???????????????# # a@ #?????????? | | ??????????????# a ##?????????? | | ??????????????# aaa#### ##?????????? | | ??????????????## ??????# ####??????? | | ???????????????????????# [%=##?????? | | ???????????????????????# =%*[ #?????? | | ???????????????????????#=%[ ## #????? | | ???????????????????????## ##?# #???? | | ????????????????????????####???# #???? | | ????????????????????????????????###???? | | ??????????????????????????????????????? | | ??????????????????????????????????????? | | ??????????????????????????????????????? | | ??????????????????????????????????????? | | ??????????????????????????????????????? | | ??????????????????????????????????????? | | ??????????????????????????????????????? | | ??????????????????????????????????????? | | ??????????????????????????????????????? | | ??????????????????????????????????????? | | ??????????????????????????????????????? | | ??????????????????????????????????????? | | | | | | | +----------------------------------------------------+ Best States ------------- Heat Dissipation 25 Energy Generation 14 Energy Capacity 250 Matter Stores 300 Matter Capacity 300 Sight Range 16 Terrain Scan Density 10 Utility Shielding 33 Evasion (%) 42 Recoil Reduction 2 Offensive Hacking 10 Item Schematics ----------------- None Robot Schematics ------------------ None Fabricated ------------ Nothing Repaired ---------- Nothing Alien Tech Used ----------------- None Achievements -------------- None Challenges ------------ None Game ------ Seed HeartBlastTelecube Manual? 0 Play Time 00:16:50 Cumulative 19.4 hours Start 2025.10.07 @ 19:17:53 End 2025.10.07 @ 19:37:45 Sessions 1 Manual Loads 0 Difficulty Rogue Special Mode None Game No. 58 Rogue 51 Adventurer 7 Explorer 0 Win Type - Total 0 Types 0/0/0/0/0/0/0/0/0/0 Lore% 4 Gallery% 19 Achievement% 19 Wizard Run 0 Options --------- Layout 0 ASCII 0 Keyboard 1 Movement Vi Keybinds 0 Fullscreen 1 Font 18/SmallcapsGlow Map View 112x50 Zoom Use 0% Tactical HUD 1 Map Filters NONE Filters NONE Steam 1 RUN: 2bd6f707-f94d-4fc9-8003-45280cf2b98c